Cogmind - Beta 16 --- EXPLORER MODE // 2026.02.09 @ 10:22:45 Player: K.K.Y. Result: Destroyed by HS-1NA(R) with Subdweller Laser Performance ------------- Evolutions (0) 0 Regions Visited (2) 400 Robots Destroyed (46) 230 Value Destroyed (937) 937 Prototype IDs (0) 0 Alien Tech Used (0) 0 Bonus (0) 0 TOTAL SCORE: 1567 Bonus ------- None Cogmind --------- Core Integrity 0/250 Matter 300/300 Energy 265/265 System Corruption 0% Temperature Cool (6) Movement Treading (320) Ox2 Location -10/Subcaves Parts ------- > --- POWER (1) -------- Improved Ion Engine > --- PROPULSION (2) --- Light Treads > --- UTILITY (3) ------ Heat Sink High-capacity Storage Unit > --- WEAPON (2) ------- Medium Laser Subdweller Laser > --- INVENTORY (20) --- Improved Ion Engine Improved Ion Engine Light Treads Light Treads Light Treads Light Treads Medium Storage Unit High-capacity Storage Unit Huge Storage Unit Structural Scanner Improved Terrain Scanner Subdweller Beam Cannon Battle Rifle Battle Cannon Datajack Mining Laser Multitool Makeshift Hammer Makeshift Axe Peak State ------------ > --- POWER ------------ Improved Ion Engine > --- PROPULSION ------- Light Treads Light Treads > --- UTILITY ---------- Heat Sink High-capacity Storage Unit > --- WEAPON ----------- Subdweller Laser Subdweller Laser > --- INVENTORY -------- Improved Ion Engine Improved Ion Engine Improved Ion Engine Light Treads Light Treads Light Treads Light Treads Light Treads Medium Storage Unit Huge Storage Unit Structural Scanner Improved Terrain Scanner Medium Laser Subdweller Beam Cannon Datajack Mining Laser [Rating: 12] Favorites ----------- Power Improved Ion Engine Engine Improved Ion Engine Propulsion Light Treads Treads Light Treads Utility High-capacity Storage Unit Device Heat Sink Storage High-capacity Storage Unit Weapon Medium Laser Energy Gun Medium Laser Build | -11 -10 -10 ------- Run | Yrd Mat Sub Slots Evolved 1 | . 1 . Power . | . . . Propulsion . | . . . Utility 1 | . 1 . Weapon . | . . . Parts Attached 16 | 7 5 4 Power 3 | 1 1 1 Engine 3 | 1 1 1 Core . | . . . Reactor . | . . . Propulsion 5 | 2 2 1 Treads 5 | 2 2 1 Leg . | . . . Wheel . | . . . Hover . | . . . Flight . | . . . Utility 4 | 2 2 . Device 2 | 1 1 . Storage 2 | 1 1 . Processor . | . . . Hackware . | . . . Protection . | . . . Artifact . | . . . Weapon 4 | 2 . 2 Energy Gun 4 | 2 . 2 Energy Cannon . | . . . Ballistic Gun . | . . . Ballistic Cannon . | . . . Launcher . | . . . Special Weapon . | . . . Impact Weapon . | . . . Slashing Weapon . | . . . Piercing Weapon . | . . . Special Melee Weapon . | . . . Unidentified Prototypes . | . . . Parts Lost 5 | . . 5 Power 1 | . . 1 Propulsion 2 | . . 2 Utility 1 | . . 1 Weapon 1 | . . 1 Highest Loss Streak 2 | . . 2 To Critical Strikes . | . . . Average Backups 13 | . 9 15 Power 1 | . 1 2 Propulsion 3 | . 3 4 Utility 3 | . 2 4 Weapon 2 | . 1 3 Tool/Special . | . . . Unused Backups 19 | . 1 18 Power 2 | . . 2 Propulsion 5 | . 1 4 Utility 4 | . . 4 Weapon 6 | . . 6 Tool/Special 2 | . . 2 Average Slot Usage (%) 82 | . 93 76 Engine 11 | . 12 11 Treads 18 | . 25 13 Device 14 | . 18 12 Storage 12 | . 12 12 Energy Gun 24 | . 25 24 Peak Build Rating 12 | 7 10 12 Average Rating 9 | 5 8 10 On Entrance 5 | . 7 10 Avg Prop Armor Cover (%) . | . . . Naked Turns . | . . . Heaviest Build 56 | 20 53 56 Greatest Support 40 | 40 40 40 Greatest Overweight (x) 2 | . 1 2 Average Overweight (x) 1 | . . 1 Largest Inventory Capacity 20 | 10 20 20 Average Capacity 18 | 9 15 20 Most Carried 19 | 5 14 19 Average Carried 13 | 1 9 15 Final Capacity 20 | 10 20 20 Final Carried 19 | 2 14 19 Class Distribution -------------------- 100% | Hacker-Mutant Dominant Class ---------------- Hacker-Mutant | -10/Materials Hacker-Mutant | -10/Subcaves Resources | -11 -10 -10 ----------- Run | Yrd Mat Sub Matter Collected 365 | 270 50 45 Remotely . | . . . Salvage Created 1545 | 89 892 564 Parts 82 | 8 39 35 Haulers Intercepted 2 | . 2 . Recyclers Shooed 4 | . 4 . Parts Field Recycled . | . . . Retrieved Matter . | . . . Parts Self-Destructed . | . . . Prevented . | . . . Parts Restored . | . . . Kills | -11 -10 -10 ------- Run | Yrd Mat Sub Combat Hostiles Destroyed 25 | . 12 13 Guns 23 | . 10 13 Classes Destroyed 11 | 2 6 3 Builder 7 | . 7 . Tunneler 3 | 2 1 . Hauler 2 | . 2 . Recycler 3 | 1 2 . Mechanic 1 | . 1 . Turret 2 | . . 2 Watcher 3 | . 3 . Swarmer 8 | . 4 4 Grunt 8 | . 8 . Artisan 2 | . . 2 Subdweller 9 | . . 9 Best Kill Streak 4 | 2 3 4 Combat Bots Only 4 | . 2 4 Max Kills in Single Turn 2 | 1 1 2 Gunslinging 1 | . . 1 Exploded . | . . . Melee . | . . . Uniques/NPCs Destroyed . | . . . Combat | -11 -10 -10 -------- Run | Yrd Mat Sub Hostile Shots Fired 204 | . 63 141 Missed 64 | . 20 44 Hits 140 | . 43 97 Projectile 140 | . 43 97 Critical Strikes 2 | . 1 1 Damage Taken 1118 | . 286 832 Core 257 | . 41 216 Absorbed by Shields . | . . . Ignored by Resistances 703 | . 183 520 Core Remaining (%) 100 | 100 . . Volleys Fired 191 | 7 70 114 Largest 2 | 2 2 2 Hottest 120 | 100 100 120 Shots Fired 361 | 14 140 207 Gun 361 | 14 140 207 Cannon . | . . . Launcher . | . . . Special . | . . . Kinetic . | . . . Thermal 361 | 14 140 207 Explosive . | . . . Electromagnetic . | . . . Robot Hit Streak 48 | 9 48 23 Robot Miss Streak 2 | 1 2 2 Penetration Max . | . . . Secondary Targets 5 | . 3 2 Max Gunslinging Chain 1 | . 1 1 Shots Hit Robots 231 | 12 119 100 Core Hits 73 | 4 39 30 Critical Kills . | . . . Critical Parts Destroyed . | . . . Critical Strikes 17 | 1 11 5 Burn 15 | 1 11 3 Destroy 2 | . . 2 Melee Attacks . | . . . Impact . | . . . Slashing . | . . . Piercing . | . . . Sneak Attacks . | . . . Combat Hostiles . | . . . Follow-up Attacks . | . . . Damage Inflicted 3206 | 148 1516 1542 Guns 3200 | 148 1510 1542 Cannons . | . . . Explosions . | . . . Melee . | . . . Ramming 6 | . 6 . Kinetic . | . . . Thermal 3200 | 148 1510 1542 Explosive . | . . . Electromagnetic . | . . . Impact . | . . . Slashing . | . . . Piercing . | . . . Highest Corruption . | . . . Average Corruption . | . . . Corruption Purged . | . . . Corruption Blocked . | . . . Overload Shots . | . . . Overflow Damage . | . . . Projectiles . | . . . Explosions . | . . . Melee . | . . . Knockbacks . | . . . Impact . | . . . Kinetic . | . . . Secondary . | . . . Self-Inflicted Damage . | . . . Shots . | . . . Rammed 1 | . 1 . Targets Rammed 2 | . 2 . Kicked . | . . . Crushed 1 | . 1 . Highest Temperature 366 | 156 366 140 Average Temperature 88 | 59 92 65 Received Heat Transfer 744 | . 222 522 Effects 3 | . 3 . Interference 3 | . 3 . Siege Activations . | . . . Martial Activations . | . . . Shielding Activations . | . . . Robots Disrupted . | . . . Combat Hostiles . | . . . Robots Corrupted . | . . . Combat Hostiles . | . . . Parts Fried . | . . . Impact Corruptions . | . . . Robots Melted 4 | . 4 . Combat Hostiles 2 | . 2 . Parts Melted 20 | 1 17 2 Heat Transferred 8871 | 518 5254 3099 Parts Sabotaged . | . . . Parts Stolen . | . . . Parts Stripped . | . . . Power Chain Reactions . | . . . Alert | -11 -10 -10 ------- Run | Yrd Mat Sub Maximum Alert Level . | . . . Low Security (%) 100 | 100 100 . Level 1 . | . . . Level 2 . | . . . Level 3 . | . . . Level 4 . | . . . Level 5 . | . . . High Security . | . . . Max Security . | . . . Peak Influence 50 | 5 50 . Initial . | . . . Average 4 | . 4 . Influence Increases 559 | 15 379 165 Destroy 0b10 Robot/C 360 | . 240 120 Destroy 0b10 Robot/NC 95 | 15 80 . Destroy Leader 50 | . 50 . Successful Hack 8 | . 8 . Destroy Structure 1 | . 1 . Lose Combat Pursuer 45 | . . 45 Influence Decreases 559 | 15 379 165 Time Decay 529 | 15 379 135 Lost Part 30 | . . 30 Squads Dispatched . | . . . Investigation . | . . . Extermination . | . . . Reinforcement . | . . . Assault . | . . . Garrison . | . . . Intercept . | . . . Searches Triggered . | . . . Construction Impeded . | . . . Haulers Reinforced . | . . . Active Scanning Responses . | . . . Cargo Convoy Interrupts . | . . . Stealth | -11 -10 -10 --------- Run | Yrd Mat Sub Distress Signals 1 | . 1 . Communications Jammed . | . . . Distress Signals . | . . . Times Spotted 41 | . 24 17 Peak Tracking Total 6 | . 4 6 Tactical Retreats 2 | . . 2 Traps | -11 -10 -10 ------- Run | Yrd Mat Sub Traps Triggered . | . . . Indirectly . | . . . Trap Hack Attempts . | . . . Triggered . | . . . Disarmed 12 | . 12 . Reprogrammed . | . . . Reused . | . . . Traps Extracted . | . . . Installed . | . . . Triggered . | . . . Machines | -11 -10 -10 ---------- Run | Yrd Mat Sub Machines Disabled 1 | . . 1 Max in Single Turn 1 | . . 1 Machines Repaired . | . . . Machines Dismantled . | . . . Machines Sabotaged . | . . . Overloaded Fab Kills . | . . . Hacking | -11 -10 -10 --------- Run | Yrd Mat Sub Machines Accessed 10 | . 8 2 Terminals 7 | . 7 . Fabricators . | . . . Repair Stations . | . . . Recycling Units 1 | . 1 . Scanalyzers . | . . . Garrison Access . | . . . Total Hacks 19 | . 16 3 Successful 16 | . 13 3 Failed 3 | . 3 . Catastrophic . | . . . Database Lockouts . | . . . Manual 10 | . 10 . Terminals 14 | . 14 . Fabricators . | . . . Repair Stations . | . . . Recycling Units 2 | . 2 . Scanalyzers . | . . . Garrison Access . | . . . Terminal Hacks 6 | . 3 3 Record 1 | . . 1 Robot Analysis 1 | . 1 . Open Door 1 | . . 1 Disarm Traps 2 | . 2 . Release Object 1 | . . 1 Fabricator Hacks . | . . . Repair Station Hacks . | . . . Recycling Unit Hacks 2 | . 2 . Retrieve Components 2 | . 2 . Scanalyzer . | . . . Garrison Access Hacks . | . . . Unauthorized Hacks 7 | . 7 . Terminals 7 | . 7 . Botnet 7 | . 7 . Fabricators . | . . . Repair Stations . | . . . Recycling Units . | . . . Scanalyzers . | . . . Garrison Access . | . . . Data Cores Recovered . | . . . Used . | . . . Hacking Detections 3 | . 3 . Full Trace Events . | . . . Feedback Events . | . . . Feedback Blocked . | . . . Robot Schematics Acquired . | . . . Robots Built . | . . . Authchips . | . . . Time . | . . . Total Robot Build Rating . | . . . Part Schematics Acquired . | . . . Parts Built . | . . . Authchips . | . . . Time . | . . . Total Part Build Rating . | . . . Part Studies Acquired . | . . . Parts Repaired . | . . . Time . | . . . Parts Recycled . | . . . Recycled Matter . | . . . Retrieved Matter . | . . . Retrieved Components . | . . . Parts Scanalyzed . | . . . Part Schematics Acquired . | . . . Parts Damaged . | . . . Bothacking | -11 -10 -10 ------------ Run | Yrd Mat Sub Used RIF Installer . | . . . Robots Hacked . | . . . Non-combat . | . . . Combat . | . . . Robot Hacks Applied . | . . . Relay Couplers Released . | . . . Fabnet Peak Effective % . | . . . Robots Rewired . | . . . Allies Hacked . | . . . Hacks Repelled . | . . . Allies | -11 -10 -10 -------- Run | Yrd Mat Sub Total Allies . | . . . Largest Group . | . . . Highest-Rated Group . | . . . Highest-Rated Ally . | . . . Total Orders . | . . . Ally Attacks . | . . . Total Damage . | . . . Kills . | . . . Allies Corrupted . | . . . Allies Melted . | . . . Intel | -11 -10 -10 ------- Run | Yrd Mat Sub Active Infowar (turns) 2287 | 104 2032 151 Sensors 2287 | 104 2032 151 Robot Analysis Total 1 | . 1 . Derelict Logs Recovered 1 | . . 1 Drone Launches . | . . . Drone Recoveries . | . . . Exploration | -11 -10 -10 ------------- Run | Yrd Mat Sub Turns Passed 5712 | 119 2075 3518 Spaces Moved 1967 | 53 896 1018 Core 17 | 17 . . Treads 1950 | 36 896 1018 Legs . | . . . Wheels . | . . . Hover . | . . . Flight . | . . . Fastest Speed 50 | 50 160 240 Average Speed 252 | 124 197 307 Slowest Speed 320 | 160 240 320 Overloaded Moves . | . . . Propulsion Burnouts . | . . . Robots Hopped . | . . . Potential Cave-ins . | . . . Cave-ins Triggered . | . . . Exploration Rate (%) 52 | 4 100 53 Regions Visited 2 Branch Regions 1 Pre-discovered Areas . | . . . Known Exits Taken 2 | 1 1 . Unknown Exits Taken . | . . . Scrap Searched 3 | . . 3 Spaces Dug . | . . . Terrain Destroyed . | . . . Melee . | . . . Projectile . | . . . AOE . | . . . Terrain Rammed . | . . . Walls Destroyed . | . . . Machines Disabled . | . . . Actions | -11 -10 -10 --------- Run | Yrd Mat Sub Total 2351 | 91 1063 1197 Wait 138 | 18 72 48 Move 1965 | 52 895 1018 Hop . | . . . Pick Up 30 | 7 14 9 Fast Attach 2 | 2 . . Attach 11 | 5 2 4 Detach 2 | . 1 1 Swap 5 | . 3 2 Drop 5 | . 4 1 Fire 191 | 7 70 114 Melee . | . . . Ram . | . . . Kick . | . . . Crush 2 | . 2 . Escape Stasis . | . . . Rewire . | . . . Trap . | . . . Miscellaneous . | . . . Route ------- -11/Scrapyard -10/Materials (discovered 6 exits: *Mat x3 / *Min x2 / *Sub) -10/Subcaves (discovered 3 exits: *Mat x2 / *Rec) History --------- Turn | Location | Event 4 | -11/Scrapyard | Identified exit to Materials 4 | -11/Scrapyard | Discovered exit to Materials (range 15) 120 | -11/Scrapyard | Entered Materials 120 | -10/Materials | Evolved 1 slot: Utility x1 287 | -10/Materials | Identified exit to Mines 287 | -10/Materials | Discovered exit to Mines (range 15) 311 | -10/Materials | Build established: Hacker-Mutant 692 | -10/Materials | Identified exit to Materials 692 | -10/Materials | Discovered exit to Materials (range 13) 1160 | -10/Materials | Discovered exit to Materials (range 8) 1507 | -10/Materials | Discovered exit to Mines (range 16) 1583 | -10/Materials | Discovered exit to Materials (range 15) 2174 | -10/Materials | Identified exit to Subcaves 2174 | -10/Materials | Discovered exit to Subcaves (range 10) 2195 | -10/Materials | Entered Subcaves 2196 | -10/Subcaves | Approached by a straggling Scientist 2454 | -10/Subcaves | Shifting Twisted Machinery released Sub. Laser 2459 | -10/Subcaves | Shifting Twisted Machinery released Sub. Optics 2546 | -10/Subcaves | Identified exit to Recycling 2546 | -10/Subcaves | Discovered exit to Recycling (range 14) 2593 | -10/Subcaves | Core integrity fell below 50% 3403 | -10/Subcaves | A swath of the cavern ceiling suddenly collapsed 3781 | -10/Subcaves | Shifting Twisted Machinery released Mak. Axe 3838 | -10/Subcaves | Core integrity fell below 20% 3861 | -10/Subcaves | Shifting Twisted Machinery released Sub. Machine Gun 5081 | -10/Subcaves | Identified exit to Materials 5081 | -10/Subcaves | Discovered exit to Materials (range 7) 5100 | -10/Subcaves | Discovered exit to Materials (range 13) 5113 | -10/Subcaves | Learned Materials security intel 5590 | -10/Subcaves | A swath of the cavern ceiling suddenly collapsed 5709 | -10/Subcaves | Disturbed a concealed Subdweller 5713 | -10/Subcaves | Destroyed by HS-1NA(R) with Subdweller Laser Last Messages --------------- 04307_ Searching scrap... 04307_ Found Sub. Power Source. 04307_ Found 57 Matter. 04310_ Searching scrap... 04310_ Found Mak. Hammer. 04310_ Found Riot Gun. 04310_ Found 42 Matter. 04314_ Searching scrap... 04314_ Found Flamer. 04314_ Found Battle Cannon. 04314_ Found 40 Matter. 04320_ Acquired Battle Cannon. 04337_ Acquired Mak. Hammer. 05081_ EXIT=FOUND: MATERIALS 05113_ Acquired derelict log, extracted data. Data stored: Materials security intel. 05260_ Subatomizers dissect the Sml. Laser. A swath of the cavern ceiling suddenly collapses. 05624_ Acquired Battle Rifle. Map ----- +----------------------------------------------------+ | ??????????#" ##??????????????????????????????# ### | | ??????????## ##??????????????????????????????# #"# | | ??????????#" "#??????????????????????????????#"""" | | ??????????## ##??????????????????????????????##"#" | | ??????????# ##???????????????????????????????###" | | ?????????###" #??##########??######???????????##"" | | ?????????# " #####""#"## #### ###?????????#""" | | ?????????#"" """ ## #####?????### | | ?????????#" "" ##????##" | | ?????????#"" ### ###### | | ?????????#" """" ###?###### | | ?????????## """" ##????????## ## | | ??????????# ""## ##??????????# #### | | ??????????# "###"#???????????# #??## ## | | ?????????## #?###???????????#### ##???### ###### | | ?????????# ##??????????????????###??????####????# | | ?????????# #???????????????????????????????????# | | ?????????# #???????????????????????????????????? | | ???????### #???????????????????????????????????# | | ???????# # #???????????????????????????????????# | | ???????## ##???????????????????????????????????# | | ????????# # #???????????????????????????????????# | | ????????# ###??????????###??????????????????????? | | ???????## #????????????&R#??????????????????????? | | ???????# ###???????????##&#??????????????????????? | | ???????###????????????## @#??????????????????????# | | ????????????????????###< ##?????????????????????## | | ????????????????????# ## ##?????????????????????# | | ????????????????????# < "#?????????????????????## | | ????????????#???##?## ##????????????????????## | | ????????????# ## ## ##???#???????????????# | | ?????????????# ### ##??????????????# | | ?????????#???# # ##????????????## | | ???????? # ### "#????????????# | | ???????? # # "#"#???????????# | | ????????# #####? #?????????????## | | ????????# ## ##?????#??????????????## | | ????????? ! ??### #"#?#####???????????????? | | ??????????????????# "####"#####?????????????? | | ??????????????????# "# #"""""""#?#?????##????# | | ?????????????????# # "#"##"### #####?? ????## | | ???????????????? "###"##"""#""""## #????# | | ??????????????? #?##?##""#"###" #????# | | ?????????????# # # ### #????##"""#""#" #?????## | | ?????????????#?######??# #????#"###"### #######?# | | ???????????????????????# ????###""""# ## ## ##? | | ???????????????????????? ??????###" ## | | ???????????????????????? ????????# | | ???????????????????????? # ???????# ## # | | ???????????????????????? ???? ######## | +----------------------------------------------------+ Best States ------------- Heat Dissipation 35 Energy Generation 12 Energy Capacity 265 Matter Stores 300 Matter Capacity 300 Sight Range 16 Robot Scan Range 14 Terrain Scan Density 10 Resistance: KI 35 Resistance: TH 35 Resistance: EX 35 Resistance: EM 35 Resistance: I 35 Resistance: S 35 Resistance: P 35 Evasion (%) 50 Recoil Reduction 2 Offensive Hacking 20 Item Schematics ----------------- None Robot Schematics ------------------ None Fabricated ------------ Nothing Repaired ---------- Nothing Studied --------- None Alien Tech Used ----------------- None Achievements -------------- None Challenges ------------ None Game ------ Seed BlastReflectiveComputer Manual? 0 Play Time 00:16:32 Cumulative 325.9 hours Start 2026.02.09 @ 10:06:54 End 2026.02.09 @ 10:22:45 Sessions 1 Manual Loads 0 Difficulty Explorer Special Mode None Game No. 514 Rogue 0 Adventurer 0 Explorer 514 Win Type - Total 0 Types 0/0/0/0/0/0/0/0/0/0 Lore% 77 Gallery% 70 Achievement% 56 Wizard Run 0 Options --------- Layout 1 ASCII 0 Keyboard 0 Movement Mouse Keybinds 1 Fullscreen 1 Font 24/Smallcaps Map View 50x35 Zoom Use 0% Tactical HUD 1 Map Filters NONE Filters NONE Steam 1 RUN: 5e427c1c-8596-40df-8ae5-d5d5e56d1421